fUSD/lending_fUSD_20260320
["ID","MTS","AMOUNT","RATE_DAILY","PERIOD"]
[408625194,1773996651285,-151.0,0.00016438,2]
[408625195,1773996651294,-151.0,0.00016438,2]
[408625196,1773996651304,-151.0,0.00016438,2]
[408625197,1773996651314,-151.0,0.00016438,2]
[408625198,1773996651323,-151.0,0.00016438,2]
[408625199,1773996651333,-151.0,0.00016438,2]
[408625200,1773996651343,-180.172384,0.00016438,2]
[408625201,1773996651352,-154.43894,0.00016438,2]
[408625202,1773996651362,-150.0,0.00016462,2]
[408625203,1773996651371,-150.0,0.00016462,2]
[408625204,1773996651380,-150.0,0.00016462,2]
[408625205,1773996651390,-150.0,0.00016462,2]
[408625206,1773996651400,-150.0,0.00016462,2]
[408625207,1773996651410,-150.0,0.00016462,2]
[408625208,1773996651420,-245.0,0.00016462,2]
[408625209,1773996651430,-502.0,0.00016476,4]
[408625210,1773996651440,-1567.0,0.00016477,2]
[408625211,1773996651450,-300.0,0.00016499,2]
[408625212,1773996651460,-300.0,0.00016499,2]
[408625213,1773996651469,-310.33521517,0.00016499,2]
[408625214,1773996651478,-175115.53,0.000165,2]
[408625215,1773996651487,-420.26,0.000165,2]
[408625216,1773996651497,-646.83,0.000165,2]
[408625217,1773996651506,-315.92,0.000165,2]
[408625218,1773996651516,-2000.0,0.00016555,2]
[408625219,1773996651525,-4000.0,0.0001667,2]
[408625220,1773996651535,-329.98,0.000167,2]
[408625221,1773996651544,-472.06,0.000167,2]
[408625222,1773996651554,-313.7,0.00016712,2]
[408625223,1773996651564,-166.84,0.00016712,2]
[408625224,1773996651573,-1500.0,0.00016722,7]
[408625225,1773996651582,-700.0,0.00016722,7]
[408625226,1773996651592,-1900.0,0.00016722,7]
[408625227,1773996651601,-150.0,0.00016731,2]
[408625228,1773996651610,-150.0,0.00016731,2]
[408625229,1773996651622,-150.0,0.00016731,2]
[408625230,1773996651633,-150.0,0.00016731,2]
[408625231,1773996651642,-150.0,0.00016731,2]
[408625232,1773996651651,-150.0,0.00016731,2]
[408625233,1773996651661,-235.0,0.00016731,2]
[408625234,1773996651672,-1255.12,0.00016789,2]
[408625235,1773996651682,-295.59,0.00016789,2]
[408625236,1773996651692,-232.98,0.00016789,2]
[408625237,1773996651702,-186.74,0.00016789,2]
[408625238,1773996651712,-310.89,0.00016789,2]
[408625239,1773996651722,-1518.1,0.00016789,2]
[408625240,1773996651731,-202.42,0.00016789,2]
[408625241,1773996651741,-195.3,0.00016789,2]
[408625242,1773996651751,-185.45,0.00016789,2]
[408625243,1773996651761,-514.11,0.00016789,2]
[408625244,1773996651771,-217.5,0.00016823,2]
[408625245,1773996651782,-873.66,0.00016823,2]
[408625246,1773996651792,-219.82,0.00016823,2]
[408625247,1773996651802,-505.76,0.00016823,2]
[408625248,1773996651812,-541.16,0.00016823,2]
[408625249,1773996651821,-165.47,0.00016823,2]
[408625250,1773996651831,-892.7,0.00016885,7]
[408625251,1773996651840,-892.7,0.00016885,7]
[408625252,1773996651850,-892.7,0.00016885,7]
[408625253,1773996651860,-892.7,0.00016885,7]
[408625254,1773996651870,-940.11117438,0.00016947,2]
[408625255,1773996651879,-313.7,0.00016986,2]
[408625256,1773996651890,-433.755174,0.00016986,7]
[408625257,1773996651899,-152.0,0.00016988,7]
[408625258,1773996651909,-868.03,0.00016999,2]
[408625259,1773996651919,-868.03,0.00016999,2]
[408625260,1773996651928,-150.0,0.00017,2]
[408625261,1773996651939,-136006.43099475,0.00017,2]
[408625262,1773996651949,-252916.75732212,0.00017,2]
[408625263,1773996651961,-300.0,0.00017,2]
[408625264,1773996651972,-161.0,0.0001704,2]
[408625265,1773996651981,-200.0,0.00017055,2]
[408625266,1773996651991,-4000.0,0.00017058,2]
[408625267,1773996652001,-15973.3757962,0.000171,2]
[408625268,1773996652010,-261.3142182,0.0001714,2]
[408625269,1773996652021,-892.7,0.00017159,7]
[408625270,1773996652030,-892.7,0.00017159,7]
[408625271,1773996652040,-168.05,0.00017185,2]
[408625272,1773996652050,-500.0,0.00017189,2]
[408625273,1773996652059,-500.0,0.00017189,2]
[408625274,1773996652070,-313.7,0.0001726,2]
[408625275,1773996652079,-892.7,0.00017433,7]
[408625276,1773996652089,-892.7,0.00017433,7]
[408625277,1773996652099,-1585.91582312,0.0001747,2]
[408625278,1773996652108,-100000.0,0.000175,7]
[408625279,1773996652118,-160.0,0.000175,7]
[408625280,1773996652128,-313.7,0.00017534,2]
[408625281,1773996652138,-1232.0,0.00017535,2]
[408625282,1773996652148,-427.594241,0.00017674,7]
[408625283,1773996652157,-161.0,0.0001768,2]
[408625284,1773996652167,-162.0,0.0001768,2]
[408625285,1773996652177,-892.7,0.00017707,7]
[408625286,1773996652186,-892.7,0.00017707,7]
[408625287,1773996652196,-152.0,0.00017764,8]
[408625288,1773996652206,-320.13646621,0.00017806,3]
[408625289,1773996652215,-313.7,0.00017808,2]
[408625290,1773996652226,-1500.0,0.00017818,7]
[408625291,1773996652235,-700.0,0.00017818,7]
[408625292,1773996652245,-1900.0,0.00017818,7]
[408625293,1773996652254,-500.0,0.00017873,2]
[408625294,1773996652263,-5800.0,0.00017883,2]
[408625295,1773996652273,-5800.0,0.00017891,2]
[408625296,1773996652284,-2365.50840727,0.00017898,3]
[408625297,1773996652293,-175115.53,0.000179,2]
[408625298,1773996652303,-420.26,0.000179,2]
[408625299,1773996652312,-5800.0,0.000179,2]
[408625300,1773996652322,-646.83,0.000179,2]
[408625301,1773996652332,-315.92,0.000179,2]
[408625302,1773996652341,-940.11117438,0.000179,2]
[408625303,1773996652351,-200.0,0.000179,6]
[408625304,1773996652361,-6728.58597618,0.000179,2]
[408625305,1773996652370,-351.55160825,0.000179,2]
[408625306,1773996652381,-1812.36673914,0.000179,2]
[408625307,1773996652390,-500.0,0.00017936,2]
[408625308,1773996652401,-500.0,0.00017936,2]
[408625309,1773996652411,-500.0,0.00017938,2]
[408625310,1773996652422,-500.0,0.0001794,2]
[408625311,1773996652432,-500.0,0.0001794,2]
[408625312,1773996652442,-500.0,0.00017959,2]
[408625313,1773996652451,-500.0,0.00017961,2]
[408625314,1773996652459,-500.0,0.00017963,2]
[408625315,1773996652469,-500.0,0.00017964,2]
[408625316,1773996652478,-500.0,0.00017965,2]
[408625317,1773996652488,-450.0,0.0001797,2]
[408625318,1773996652497,-500.0,0.0001797,2]
[408625319,1773996652507,-500.0,0.00017977,2]
[408625320,1773996652516,-892.7,0.00017981,7]
[408625321,1773996652526,-892.7,0.00017981,7]
[408625322,1773996652535,-500.0,0.00017982,2]
[408625323,1773996652545,-500.0,0.00017986,2]
[408625324,1773996652554,-500.0,0.00017988,2]
[408625325,1773996652563,-500.0,0.00017988,2]
[408625326,1773996652573,-500.0,0.00017998,2]
[408625327,1773996652582,-868.03,0.00017999,2]
[408625328,1773996652592,-868.03,0.00017999,2]
[408625329,1773996652601,-868.03,0.00017999,2]
[408625330,1773996652611,-868.03,0.00017999,2]
[408625331,1773996652623,-868.03,0.00017999,2]
[408625332,1773996652633,-868.0887903,0.00017999,2]
[408625333,1773996652642,-235.70213957,0.00017999,2]
[408625334,1773996652651,-6001.87647552,0.00017999,2]
[408625335,1773996652662,-3000.0,0.00018,2]
[408625336,1773996652671,-287741.98783875,0.00018,2]
[408625337,1773996693713,150.0,0.000149,120]
[408625338,1773996879861,269.26,0.000149,120]
[408625340,1773997607091,158.13,5.717e-05,2]
[408625341,1773997607269,158.13,6.288e-05,2]
[408625342,1773997607476,158.13,6.86e-05,2]
[408625343,1773997831425,-158.13,7.432e-05,2]
[408625344,1773997831446,-158.13,8.003e-05,2]
[408625345,1773997831481,-5.38653262,8.575e-05,2]
[408625346,1773997831545,-152.74346738,8.575e-05,2]
[408625347,1773997831560,-158.13,9.147e-05,2]
[408625348,1773997831572,-158.13,9.718e-05,2]
[408625349,1773997831585,-158.13,0.0001029,2]
[408625350,1773997831595,-158.9403,0.00010456,2]
[408625351,1773997831611,-112.13405681,0.00010563,2]
[408625352,1773997831642,-87.86594319,0.00010563,2]
[408625353,1773997831656,-300.0,0.0001076,2]
[408625354,1773997831669,-582.19144316,0.00010761,2]
[408625355,1773997831680,-181.72117157,0.00010761,2]
[408625356,1773997831693,-427.88204625,0.00010761,2]
[408625357,1773997831702,-316.35886194,0.00010761,2]
[408625358,1773997831712,-500.0,0.00010761,2]
[408625359,1773997831722,-500.0,0.00010761,2]
[408625360,1773997831731,-500.0,0.00010761,2]
[408625361,1773997831763,-500.0,0.00010761,2]
[408625362,1773997831783,-500.0,0.00010761,2]
[408625363,1773997831794,-500.0,0.00010761,2]
[408625364,1773997831805,-500.0,0.00010761,2]
[408625365,1773997831815,-500.0,0.00010761,2]
[408625366,1773997831826,-500.0,0.00010761,2]
[408625367,1773997831837,-500.0,0.00010761,2]
[408625368,1773997831847,-500.0,0.00010761,2]
[408625369,1773997831858,-500.0,0.00010761,2]
[408625370,1773997831869,-407.51322256,0.00010761,2]
[408625371,1773997831879,-500.0,0.00010761,2]
[408625372,1773997831888,-500.0,0.00010761,2]
[408625373,1773997831898,-1338.36821147,0.00010762,2]
[408625374,1773997831910,-371.27120976,0.00010762,2]
[408625384,1773997837519,-168.99528614,0.00010661,2]
[408625385,1773997837529,-790.36057877,0.00010762,2]
[408625386,1773997837538,-786.19334923,0.00010762,2]
[408625387,1773997837550,-636.88021714,0.00010762,2]
[408625388,1773997837561,-6889.46636539,0.00010762,2]
[408625389,1773997837572,-2002.38557087,0.00010762,2]
[408625392,1773997837584,-868.64951001,0.00010762,2]
[408625393,1773997837863,-145691.83015871,0.00010762,2]
[408625395,1773997837874,-139822.72393551,0.00010762,2]
[408625398,1773997839861,-1982.76593172,0.00010762,2]
[408625399,1773997840182,-388.34226395,0.00010762,2]
[408625402,1773997842675,-638.25140107,0.00010762,2]
[408625403,1773997842941,-1071.18168082,0.00010762,2]
[408625404,1773997842999,-325.58015431,0.00010762,2]
[408625407,1773997846086,-13371.4208097,0.00010762,2]
[408625410,1773998515150,1000.0,0.000163,120]
[408625411,1773998536500,500.0,0.00012575,10]
[408625412,1773998547937,656.75,0.0001341,30]
[408625413,1773998585041,358.46,9e-05,2]
[408625427,1773999031565,-544.144535,0.00010047,2]
[408625431,1773999031619,-1610.89109739,0.00010047,2]
[408625434,1773999031674,-1419.65435829,0.00010047,2]
[408625435,1773999031686,-499.50294632,0.00010047,2]
[408625436,1773999031699,-2596.0,0.00010047,2]
[408625437,1773999031729,-510.0,0.00010047,2]
[408625438,1773999031742,-2819.807063,0.00010047,2]
[408625439,1773999031752,-158.9403,0.00010139,2]
[408625440,1773999031761,-500.0,0.00010239,2]
[408625441,1773999031772,-2000.0,0.00010239,2]
[408625442,1773999031782,-165.13,0.00010546,2]
[408625443,1773999031793,-1500.0,0.00010555,2]
[408625444,1773999031803,-615.02716247,0.00010561,3]
[408625445,1773999031812,-894.40272341,0.00010561,3]
[408625446,1773999031822,-299.51743238,0.00010561,2]
[408625447,1773999031832,-500.0,0.00010561,2]
[408625448,1773999031841,-335.98768692,0.00010561,2]
[408625450,1773999031852,-164.01231308,0.00010561,2]
[408625452,1773999031862,-500.0,0.00010561,2]
[408625453,1773999031871,-92.17385978,0.00010561,2]
[408625454,1773999031883,-407.82614022,0.00010561,2]
[408625455,1773999031892,-500.0,0.00010561,2]
[408625457,1773999031902,-390.75132226,0.00010561,2]
[408625459,1773999031912,-500.0,0.00010561,2]
[408625460,1773999031921,-500.0,0.00010561,2]
[408625461,1773999031930,-500.0,0.00010561,2]
[408625462,1773999031939,-336.22225875,0.00010561,2]
[408625463,1773999031951,-71.31175146,0.00010561,2]
[408625464,1773999031960,-500.0,0.00010561,2]
[408625465,1773999031969,-390.19364159,0.00010561,2]
[408625466,1773999031979,-252.26768595,0.00010561,2]
[408625467,1773999031988,-500.0,0.00010561,2]
[408625468,1773999031997,-500.0,0.00010561,2]
[408625469,1773999032007,-500.0,0.00010561,2]
[408625470,1773999032017,-500.0,0.00010561,2]
[408625471,1773999032027,-500.0,0.00010561,2]
[408625472,1773999032036,-500.0,0.00010561,2]
[408625473,1773999032046,-500.0,0.00010561,2]
[408625474,1773999032055,-6762.1846,0.00010562,2]
[408625475,1773999032065,-11950.5481,0.00010562,2]
[408625476,1773999032074,-500545.69724699,0.00010562,2]
[408625478,1773999037699,-750.97674804,0.00010562,2]
[408625479,1773999037711,-5327.78544171,0.00010562,2]
[408625480,1773999037723,-273.99031211,0.00010562,2]
[408625481,1773999037735,-2073.52539004,0.00010562,2]
[408625482,1773999037747,-6217.94027674,0.00010562,2]
[408625483,1773999037759,-891.00795986,0.00010562,2]
[408625484,1773999037771,-1029.33082543,0.00010562,2]
[408625485,1773999037785,-1086.4395005,0.00010562,2]
[408625486,1773999037850,-173.57436038,0.00010562,2]
[408625487,1773999037864,-506.80244981,0.00010562,2]
[408625488,1773999037909,-11367.30238489,0.00010562,2]
[408625489,1773999037921,-540.01220046,0.00010562,2]
[408625491,1773999037932,-7309.1,0.00010562,2]
[408625493,1773999037945,-73174.21036539,0.00010562,2]
[408625497,1773999037967,-42.54,0.00010562,2]
[408625502,1773999039930,-84341.01259892,0.00010562,2]
[408625503,1773999040142,-506.93,0.00010562,2]
[408625504,1773999040154,-4913.35357007,0.00010562,2]
[408625505,1773999040251,-3620.26101886,0.00010562,2]
[408625507,1773999040262,-704.81179978,0.00010562,2]
[408625514,1773999042736,-624.68867735,0.00010562,2]
[408625515,1773999042749,-4439.72632289,0.00010562,2]
[408625525,1773999045659,-21275.52357828,0.00010562,2]
[408625526,1773999045672,-1792.89691142,0.00010562,2]
[408625527,1773999045686,-362.84828034,0.00010562,2]
[408625528,1773999045773,-1826.80243167,0.00010562,2]
[408625529,1773999045833,-4712.018,0.00010562,2]
[408625530,1773999045851,-1141.6,0.00010562,2]
[408625531,1773999046113,-21149.69999999,0.00010562,2]
[408625532,1773999046130,-10719.99940015,0.00010562,2]
[408625533,1773999046170,-752.37901032,0.00010562,2]
[408625542,1773999379043,300.0,0.000105,30]
[408625548,1774000231814,-4782.818463,9.904e-05,2]
[408625549,1774000231824,-1789.93,9.954e-05,2]
[408625550,1774000231835,-3758.72891821,0.000102,2]
[408625551,1774000231845,-9248.41827625,0.000102,2]
[408625552,1774000231855,-7575.06386064,0.000102,2]
[408625553,1774000231866,-1949.17,0.00010262,2]
[408625554,1774000231877,-214.4442,0.00010262,2]
[408625555,1774000231887,-2500.0,0.00010262,2]
[408625556,1774000231902,-150.0,0.000103,2]
[408625557,1774000231913,-527.53,0.0001035,2]
[408625558,1774000231925,-395.0,0.0001036,2]
[408625559,1774000231936,-150.0,0.00010361,2]
[408625560,1774000231947,-444.13068107,0.00010361,2]
[408625561,1774000231957,-4309.795,0.00010362,2]
[408625562,1774000231967,-206.772,0.00010362,2]
[408625563,1774000231978,-1974.4588,0.00010362,2]
[408625564,1774000231989,-27769.9799,0.00010362,2]
[408625565,1774000232001,-276652.91998843,0.00010362,2]
[408625566,1774000232014,-3092.79329176,0.00010362,2]
[408625567,1774000232026,-11237.48396771,0.00010362,2]
[408625569,1774000232038,-9412.5,0.00010362,2]
[408625570,1774000232051,-255.51004428,0.00010362,2]
[408625571,1774000232064,-1097.89225197,0.00010362,2]
[408625572,1774000232080,-403.38902905,0.00010362,2]
[408625573,1774000232092,-867.61452967,0.00010362,2]
[408625574,1774000232107,-6345.66958523,0.00010362,2]
[408625593,1774000237963,-10457.80318571,0.00010362,2]
[408625609,1774000240586,-20776.28492001,0.00010362,2]
[408625614,1774000242844,-3244.72416054,0.00010362,2]
[408625615,1774000242898,-70650.00000001,0.00010362,2]
[408625616,1774000242914,-749.21642716,0.00010362,2]
[408625620,1774000245790,-2072.54365153,0.00010362,2]
[408625621,1774000245898,-11335.07146005,0.00010362,2]
[408625625,1774000625056,158.58,4.915e-05,2]
[408625626,1774000625246,158.58,6.143e-05,2]
[408625627,1774000625441,158.58,7.372e-05,2]
[408625628,1774000625631,158.58,8.601e-05,2]
[408625641,1774001431926,-1500.0,9.54e-05,2]
[408625642,1774001431935,-300.0,9.586e-05,2]
[408625643,1774001431945,-1200.0,9.586e-05,2]
[408625644,1774001431954,-2941.68546628,9.587e-05,2]
[408625645,1774001431975,-7058.31453372,9.587e-05,2]
[408625646,1774001431984,-160.78,9.688e-05,2]
[408625647,1774001431995,-2000.0,9.811e-05,2]
[408625648,1774001432008,-158.58,9.829e-05,2]
[408625649,1774001432018,-500.0,0.0001006,2]
[408625650,1774001432028,-337.92671637,0.0001006,2]
[408625651,1774001432040,-186.00814132,0.0001006,2]
[408625652,1774001432049,-335.19628528,0.0001006,2]
[408625653,1774001432059,-444875.51311191,0.00010061,2]
[408625654,1774001432076,-895.86861586,0.00010061,2]
[408625655,1774001432088,-296.369996,0.00010061,2]
[408625656,1774001432136,-616.38608097,0.00010061,2]
[408625657,1774001437979,-84954.59109526,0.00010061,2]
[408625658,1774001437990,-2500.0,0.00010062,2]
[408625659,1774001438005,-157.87765434,0.00010073,2]
[408625660,1774001438014,-500.0,0.00010082,2]
[408625661,1774001438024,-150.0,0.0001016,2]
[408625662,1774001438035,-42964.46624312,0.00010161,2]
[408625663,1774001438045,-500.0,0.00010161,2]
[408625664,1774001438055,-517.7171011,0.00010161,2]
[408625665,1774001438065,-1000.0,0.00010162,2]
[408625666,1774001438077,-563474.56852309,0.00010162,2]
[408625667,1774001438093,-4897.49151961,0.00010162,2]
[408625668,1774001438106,-2827.30893959,0.00010162,2]
[408625669,1774001438140,-1437.67372447,0.00010162,2]
[408625670,1774001438304,-1878.70272925,0.00010162,2]
[408625673,1774001438316,-5807.36093043,0.00010162,2]
[408625674,1774001438328,-2107.3759576,0.00010162,2]
[408625685,1774001440196,-37808.36663339,0.00010162,2]
[408625686,1774001440249,-2205.71495633,0.00010162,2]
[408625687,1774001440302,-807.438462,0.00010162,2]
[408625688,1774001440462,-361.50942593,0.00010162,2]
[408625691,1774001443134,-386.9839,0.00010162,2]
[408625692,1774001446162,-14080.0,0.00010162,2]
[408625706,1774002632154,-200.0,9.278e-05,2]
[408625708,1774002632164,-500.0,9.292e-05,2]
[408625709,1774002632174,-182.56,9.355e-05,2]
[408625710,1774002632183,-203.0,9.499e-05,2]
[408625711,1774002632193,-131.84443236,9.5e-05,3]
[408625712,1774002632208,-8619.97260098,9.5e-05,3]
[408625713,1774002632220,-644.71052742,9.5e-05,3]
[408625714,1774002632233,-765.57357729,9.5e-05,3]
[408625715,1774002632276,-253.91423836,9.5e-05,3]
[408625716,1774002632288,-79095.44859418,9.5e-05,3]
[408625717,1774002632332,-843.33708973,9.5e-05,3]
[408625718,1774002632346,-2748.05292147,9.5e-05,3]
[408625719,1774002632359,-70713.39156731,9.5e-05,3]
[408625720,1774002632376,-8183.81,9.587e-05,2]
[408625721,1774002632387,-160.81,9.711e-05,2]
[408625722,1774002632398,-980.0,9.934e-05,2]
[408625723,1774002632412,-500.0,9.943e-05,2]
[408625724,1774002632424,-500.63590136,9.943e-05,2]
[408625725,1774002632435,-500.0,9.943e-05,2]
[408625726,1774002632447,-500.0,9.943e-05,2]
[408625727,1774002632458,-500.45556563,9.943e-05,2]
[408625728,1774002632469,-500.0,9.943e-05,2]
[408625729,1774002632482,-163.47103582,9.943e-05,2]
[408625730,1774002632493,-500.0,9.943e-05,2]
[408625731,1774002632505,-500.0,9.943e-05,2]
[408625732,1774002632516,-240.86664901,9.943e-05,2]
[408625733,1774002632526,-218.59404172,9.943e-05,2]
[408625734,1774002632536,-503.53995742,9.943e-05,2]
[408625735,1774002632547,-500.0,9.943e-05,2]
[408625736,1774002632558,-500.0,9.943e-05,2]
[408625737,1774002632570,-78406.50438323,9.961e-05,2]
[408625744,1774002638234,-560.5891369,9.96e-05,2]
[408625746,1774002638243,-500.0,9.96e-05,2]
[408625748,1774002638252,-197.8886313,9.96e-05,2]
[408625749,1774002638290,-302.1113687,9.96e-05,2]
[408625750,1774002638299,-476.46762208,9.96e-05,2]
[408625754,1774002638593,-23.53237792,9.96e-05,2]
[408625755,1774002638603,-500.0,9.96e-05,2]
[408625756,1774002638613,-500.0,9.96e-05,2]
[408625757,1774002638624,-500.0,9.96e-05,2]
[408625759,1774002638634,-280.12452389,9.96e-05,2]
[408625760,1774002638643,-460.71260492,9.96e-05,2]
[408625761,1774002638652,-28.45765546,9.96e-05,2]
[408625762,1774002638664,-471.54234454,9.96e-05,2]
[408625763,1774002638674,-500.0,9.96e-05,2]
[408625764,1774002638683,-500.0,9.96e-05,2]
[408625765,1774002638692,-500.0,9.96e-05,2]
[408625766,1774002638702,-170.02707727,9.96e-05,2]
[408625767,1774002638713,-329.97292273,9.96e-05,2]
[408625768,1774002638722,-500.0,9.96e-05,2]
[408625769,1774002638732,-220.02707727,9.96e-05,2]
[408625770,1774002638743,-279.97292273,9.96e-05,2]
[408625771,1774002638752,-500.0,9.96e-05,2]
[408625772,1774002638763,-188.15502135,9.96e-05,2]
[408625773,1774002638775,-311.84497865,9.96e-05,2]
[408625774,1774002638785,-384.50589601,9.96e-05,2]
[408625775,1774002638799,-115.49410399,9.96e-05,2]
[408625776,1774002638810,-605.25263927,9.96e-05,2]
[408625777,1774002638820,-500.0,9.96e-05,2]
[408625778,1774002638829,-112.76525233,9.96e-05,2]
[408625779,1774002638841,-387.23474767,9.96e-05,2]
[408625780,1774002638850,-500.0,9.96e-05,2]
[408625781,1774002638860,-500.0,9.96e-05,2]
[408625782,1774002638869,-500.0,9.96e-05,2]
[408625783,1774002638879,-500.0,9.96e-05,2]
[408625784,1774002638889,-500.0,9.96e-05,2]
[408625785,1774002638899,-500.0,9.96e-05,2]
[408625786,1774002638908,-500.0,9.96e-05,2]
[408625787,1774002638918,-6657.76525234,9.961e-05,2]
[408625788,1774002638933,-1000.0,9.961e-05,2]
[408625792,1774002640481,-308.67861533,9.961e-05,2]
[408625793,1774002640745,-597.032921,9.961e-05,2]
[408625794,1774002640757,-3517.75,9.961e-05,2]
[408625795,1774002640768,-37097.49130031,9.961e-05,2]
[408625796,1774002640782,-18429.13707399,9.961e-05,2]
[408625797,1774002640799,-11797.7643538,9.961e-05,2]
[408625798,1774002640808,-938.096,9.961e-05,2]
[408625799,1774002640819,-200.0,0.0001,3]
[408625800,1774002640828,-1938.3798,0.00010027,2]
[408625801,1774002640838,-151.0,0.00010055,2]
[408625802,1774002640847,-151.0,0.00010055,2]
[408625803,1774002640856,-151.0,0.00010055,2]
[408625804,1774002640866,-151.0,0.00010055,2]
[408625805,1774002640875,-151.0,0.00010055,2]
[408625806,1774002640885,-151.0,0.00010055,2]
[408625807,1774002640894,-283.56701484,0.00010055,2]
[408625808,1774002640903,-151.0,0.00010055,2]
[408625809,1774002640912,-151.0,0.00010055,2]
[408625810,1774002640922,-151.0,0.00010055,2]
[408625811,1774002640931,-151.0,0.00010055,2]
[408625812,1774002640941,-200.0,0.00010055,2]
[408625813,1774002640950,-151.0,0.00010055,2]
[408625814,1774002640960,-151.0,0.00010055,2]
[408625815,1774002640969,-151.0,0.00010055,2]
[408625816,1774002640978,-151.0,0.00010055,2]
[408625817,1774002640988,-151.0,0.00010055,2]
[408625818,1774002640997,-151.0,0.00010055,2]
[408625819,1774002641007,-151.0,0.00010055,2]
[408625821,1774002641016,-151.0,0.00010055,2]
[408625823,1774002641027,-151.0,0.00010055,2]
[408625825,1774002641036,-151.0,0.00010055,2]
[408625827,1774002641045,-151.0,0.00010055,2]
[408625828,1774002641054,-151.0,0.00010055,2]
[408625829,1774002641064,-151.0,0.00010055,2]
[408625830,1774002641073,-151.0,0.00010055,2]
[408625831,1774002641082,-151.0,0.00010055,2]
[408625832,1774002641091,-151.0,0.00010055,2]
[408625833,1774002641101,-500.0,0.0001006,2]
[408625834,1774002641110,-1000.0,0.00010062,2]
[408625835,1774002641120,-500.0,0.00010073,2]
[408625836,1774002641130,-265.21030033,0.00010114,2]
[408625837,1774002641141,-158.78969967,0.00010114,2]
[408625838,1774002641151,-500.0,0.00010134,2]
[408625839,1774002641160,-500.0,0.00010134,2]
[408625840,1774002641169,-369.45232987,0.00010134,2]
[408625841,1774002641179,-500.0,0.00010134,2]
[408625842,1774002641188,-66.38243696,0.00010134,2]
[408625845,1774002643363,-433.61756304,0.00010134,2]
[408625846,1774002643376,-207.17990781,0.00010134,2]
[408625847,1774002643385,-182.29580197,0.00010134,2]
[408625848,1774002643395,-11119.16829272,0.00010135,2]
[408625856,1774002646176,-727.30228895,0.00010135,2]
[408625857,1774002646187,-994.19413203,0.00010135,2]
[408625858,1774002646198,-706.01949435,0.00010135,2]
[408625859,1774002646287,-35396.75475685,0.00010135,2]
[408625860,1774002646296,-14817.216785,0.00010135,2]
[408625861,1774002646306,-79239.7009391,0.00010135,2]
[408625862,1774002646315,-1353.8672525,0.00010135,2]
[408625863,1774002646324,-8971.8015589,0.00010135,2]
[408625864,1774002646333,-21378.9656632,0.00010135,2]
[408625865,1774002646343,-71757.5022505,0.00010135,2]
[408625866,1774002646352,-1394.0333837,0.00010135,2]
[408625867,1774002646363,-181.412114,0.00010135,2]
[408625868,1774002646377,-181.412114,0.00010135,2]
[408625869,1774002646387,-181.412114,0.00010135,2]
[408625870,1774002646397,-181.412114,0.00010135,2]
[408625871,1774002646407,-188.958473,0.00010135,2]
[408625872,1774002646416,-188.958473,0.00010135,2]
[408625873,1774002646426,-188.958473,0.00010135,2]
[408625874,1774002646438,-188.958473,0.00010135,2]
[408625875,1774002646447,-470.01,0.00010156,2]
[408625876,1774002646456,-151.0,0.00010159,2]
[408625877,1774002646467,-151.0,0.00010162,2]
[408625878,1774002646476,-151.0,0.00010162,2]
[408625879,1774002646485,-151.0,0.00010162,2]
[408625880,1774002646495,-151.0,0.00010162,2]
[408625881,1774002646505,-151.0,0.00010162,2]
[408625882,1774002646515,-151.0,0.00010162,2]
[408625883,1774002646526,-500.69062124,0.00010173,2]
[408625884,1774002646535,-500.0,0.00010173,2]
[408625885,1774002646544,-1602.0,0.000102,3]
[408625886,1774002646555,-232.40089415,0.00010205,2]
[408625887,1774002646565,-1310.36119809,0.00010205,2]